Cogmind - Beta 13 @@@ ROGUE MODE // 2024.06.13 @ 20:22:37 Player: Jay Result: Destroyed by G-47 Trooper with Particle Gun Performance ------------- Evolutions (2) 1000 Regions Visited (4) 800 Robots Destroyed (28) 140 Value Destroyed (861) 861 Prototype IDs (1) 20 Alien Tech Used (0) 0 Bonus (0) 0 TOTAL SCORE: 2821 Bonus ------- None Cogmind --------- Core Integrity 0/550 Matter 185/300 Energy 100/100 System Corruption 8% Temperature Cool (9) Movement Core (200) Ox3 Location -8/Materials Parts ------- > --- POWER (2) -------- (None) > --- PROPULSION (2) --- (None) > --- UTILITY (3) ------ Medium Storage Unit Signal Interpreter > --- WEAPON (4) ------- (None) > --- INVENTORY (10) --- Aluminum Leg Improved Aluminum Leg Carbon-fiber Leg Titanium Leg Improved Heat Sink Machine Analyzer Peak State ------------ > --- POWER ------------ Light Deuterium Engine Light Nuclear Core > --- PROPULSION ------- Carbon-fiber Leg Carbon-fiber Leg > --- UTILITY ---------- Small Storage Unit Signal Interpreter Reflective Plating > --- WEAPON ----------- Beam Rifle Assault Rifle Improved Assault Rifle Missile Launcher > --- INVENTORY -------- Light Nuclear Core Aluminum Leg Improved Aluminum Leg Carbon-fiber Leg Titanium Leg Improved Heat Sink Machine Analyzer Assault Rifle [Rating: 27] Favorites ----------- Power Light Deuterium Engine Engine Light Deuterium Engine Power Core Light Nuclear Core Propulsion Aluminum Leg Treads Light Treads Leg Aluminum Leg Utility Small Storage Unit Device Improved Sensor Array Storage Small Storage Unit Processor Signal Interpreter Protection Reflective Plating Weapon Assault Rifle Energy Gun Small Laser Ballistic Gun Assault Rifle Launcher Grenade Launcher Build | -11 -10 -9 -9 -8 ------- Run | Yrd Mat Mat Min Mat Slots Evolved 4 | . . 2 . 2 Power 1 | . . . . 1 Propulsion . | . . . . . Utility 1 | . . 1 . . Weapon 2 | . . 1 . 1 Parts Attached 35 | 7 4 6 . 18 Power 9 | 2 1 2 . 4 Engine 7 | 2 1 2 . 2 Core 2 | . . . . 2 Reactor . | . . . . . Propulsion 8 | 2 . 2 . 4 Treads 2 | 2 . . . . Leg 6 | . . 2 . 4 Wheel . | . . . . . Hover . | . . . . . Flight . | . . . . . Utility 7 | 1 1 1 . 4 Device 2 | . . 1 . 1 Storage 3 | 1 . . . 2 Processor 1 | . 1 . . . Hackware . | . . . . . Protection 1 | . . . . 1 Artifact . | . . . . . Weapon 11 | 2 2 1 . 6 Energy Gun 4 | 1 . 1 . 2 Energy Cannon . | . . . . . Ballistic Gun 5 | 1 1 . . 3 Ballistic Cannon . | . . . . . Launcher 2 | . 1 . . 1 Special Weapon . | . . . . . Impact Weapon . | . . . . . Slashing Weapon . | . . . . . Piercing Weapon . | . . . . . Special Melee Weapon . | . . . . . Unidentified Prototypes 1 | . . . . 1 Parts Lost 19 | . . 1 . 18 Power 5 | . . 1 . 4 Propulsion 2 | . . . . 2 Utility 3 | . . . . 3 Weapon 9 | . . . . 9 Highest Loss Streak 10 | . . 1 . 10 To Critical Strikes . | . . . . . Average Slot Usage (%) 91 | . 94 91 100 88 Engine 11 | . 13 10 11 10 Core 2 | . . . . 5 Treads 6 | . 28 5 . . Leg 13 | . . 16 22 17 Device 4 | . . 5 11 4 Storage 10 | . 14 11 11 8 Processor 9 | . 9 11 11 9 Protection 1 | . . . . 4 Energy Gun 9 | . 8 9 11 10 Ballistic Gun 12 | . 14 11 11 13 Launcher 7 | . 5 11 11 5 Naked Turns . | . . . . . Heaviest Build 38 | 13 13 17 17 38 Greatest Support 40 | 3 40 40 20 30 Greatest Overweight (x) 8 | 4 4 . . 8 Average Overweight (x) . | 2 . . . . Largest Inventory Capacity 10 | 8 8 8 8 10 Average Capacity 7 | 6 8 8 8 8 Most Carried 8 | 5 5 8 7 8 Average Carried 5 | 2 3 6 7 6 Final Capacity 10 | 8 8 8 8 10 Final Carried 7 | 2 4 7 7 6 Class Distribution -------------------- 31% | Mutant 20% | Skirmisher 18% | Scavenger-Tank 14% | Scavenger-Skirmisher 7% | Scavenger-Mutant 5% | Scavenger-Gunner Dominant Class ---------------- Mutant | -10/Materials Skirmisher | -9/Materials Skirmisher | -9/Mines Scavenger-Tank | -8/Materials Resources | -11 -10 -9 -9 -8 ----------- Run | Yrd Mat Mat Min Mat Matter Collected 816 | 193 234 98 . 291 Remotely . | . . . . . Salvage Created 993 | . 305 206 . 482 Parts 58 | . 18 14 . 26 Haulers Intercepted . | . . . . . Recyclers Shooed 1 | . 1 . . . Parts Field Recycled . | . . . . . Retrieved Matter . | . . . . . Parts Self-Destructed . | . . . . . Prevented . | . . . . . Kills | -11 -10 -9 -9 -8 ------- Run | Yrd Mat Mat Min Mat Combat Hostiles Destroyed 20 | . 6 4 . 10 Guns 16 | . 6 1 . 9 AOE 4 | . . 3 . 1 Classes Destroyed 8 | . 4 2 . 2 Worker 1 | . . 1 . . Builder 2 | . . 1 . 1 Recycler 1 | . 1 . . . Watcher 4 | . 3 . . 1 Swarmer 3 | . 3 . . . Grunt 12 | . 3 4 . 5 Sentry 3 | . . . . 3 Hunter 2 | . . . . 2 Best Kill Streak 4 | . 4 4 . 2 Combat Bots Only 3 | . 3 3 . 2 Max Kills in Single Turn 4 | . 1 4 . 2 Gunslinging . | . . . . . Exploded 3 | . . 3 . 1 Melee . | . . . . . Uniques/NPCs Destroyed . | . . . . . Combat | -11 -10 -9 -9 -8 -------- Run | Yrd Mat Mat Min Mat Hostile Shots Fired 245 | . 56 32 . 157 Missed 66 | . 23 10 . 33 Damage Taken 2834 | . 274 306 . 2254 Core 642 | . 59 26 . 557 Absorbed by Shields 79 | . . . . 79 Ignored by Resistances 80 | . . . . 80 Regen/Repaired (Parts) 96 | . . . . 96 Core Remaining (%) 89 | 100 76 . 93 . Volleys Fired 94 | . 39 6 . 49 Largest 4 | . 2 2 . 4 Hottest 135 | . 60 60 . 135 Shots Fired 198 | . 62 12 . 124 Gun 188 | . 62 10 . 116 Cannon . | . . . . . Launcher 10 | . . 2 . 8 Special . | . . . . . Kinetic 116 | . 39 6 . 71 Thermal 72 | . 23 4 . 45 Explosive 10 | . . 2 . 8 Electromagnetic . | . . . . . Robot Hit Streak 13 | . 13 4 . 13 Robot Miss Streak 6 | . 3 1 . 6 Penetration Max . | . . . . . Secondary Targets . | . . . . . Shots Hit Robots 115 | . 38 7 . 70 Core Hits 60 | . 15 7 . 38 Critical Kills . | . . . . . Critical Parts Destroyed . | . . . . . Critical Strikes 2 | . . . . 2 Burn 2 | . . . . 2 Melee Attacks . | . . . . . Impact . | . . . . . Slashing . | . . . . . Piercing . | . . . . . Sneak Attacks . | . . . . . Combat Hostiles . | . . . . . Follow-up Attacks . | . . . . . Damage Inflicted 2053 | . 517 208 . 1328 Guns 1576 | . 517 79 . 980 Cannons . | . . . . . Explosions 477 | . . 129 . 348 Melee . | . . . . . Ramming . | . . . . . Kinetic 895 | . 334 57 . 504 Thermal 681 | . 183 22 . 476 Explosive 477 | . . 129 . 348 Electromagnetic . | . . . . . Impact . | . . . . . Slashing . | . . . . . Piercing . | . . . . . Highest Corruption 8 | . . . . 8 Average Corruption 2 | . . . . 2 Corruption Purged . | . . . . . Corruption Blocked . | . . . . . Effects 6 | . . . . 6 Message Errors 1 | . . . . 1 Energy Discharges 1 | . . . . 1 Parts Rejected 1 | . . . . 1 Weapon Failures 3 | . . . . 3 Overload Shots . | . . . . . Overflow Damage 41 | . . . . 41 Projectiles . | . . . . . Explosions 41 | . . . . 41 Melee . | . . . . . Knockbacks . | . . . . . Impact . | . . . . . Kinetic . | . . . . . Secondary . | . . . . . Self-Inflicted Damage 165 | . . 38 . 127 Shots 5 | . . 1 . 4 Rammed . | . . . . . Targets Rammed . | . . . . . Kicked . | . . . . . Crushed . | . . . . . Highest Temperature 406 | . 24 12 . 406 Average Temperature 120 | . 15 7 . 140 Received Heat Transfer 1348 | . 42 165 . 1141 Effects 2 | . . . . 2 Shutdowns 1 | . . . . 1 Energy Bleed 1 | . . . . 1 Siege Activations . | . . . . . Robots Corrupted . | . . . . . Combat Hostiles . | . . . . . Parts Fried . | . . . . . Impact Corruptions . | . . . . . Robots Melted . | . . . . . Combat Hostiles . | . . . . . Parts Melted 2 | . . . . 2 Heat Transferred 1746 | . 400 50 . 1296 Parts Sabotaged . | . . . . . Parts Stolen . | . . . . . Parts Stripped . | . . . . . Power Chain Reactions . | . . . . . Alert | -11 -10 -9 -9 -8 ------- Run | Yrd Mat Mat Min Mat Peak Influence 196 | . 196 194 5 196 Initial 82 | . . 82 5 1 Average 83 | . 92 148 5 68 Maximum Alert Level . | . . . . . Low Security (%) 100 | 100 100 100 100 100 Level 1 . | . . . . . Level 2 . | . . . . . Level 3 . | . . . . . Level 4 . | . . . . . Level 5 . | . . . . . High Security . | . . . . . Max Security . | . . . . . Squads Dispatched 5 | . 2 1 . 2 Investigation 1 | . . . . 1 Extermination . | . . . . . Reinforcement 4 | . 2 1 . 1 Assault . | . . . . . Garrison . | . . . . . Intercept . | . . . . . Searches Triggered . | . . . . . Construction Impeded 1 | . . . . 1 Haulers Reinforced . | . . . . . Active Scanning Responses . | . . . . . Cargo Convoy Interrupts . | . . . . . Stealth | -11 -10 -9 -9 -8 --------- Run | Yrd Mat Mat Min Mat Distress Signals 2 | . . 2 . . Communications Jammed . | . . . . . Distress Signals . | . . . . . Times Spotted 37 | . 13 5 . 19 Peak Tracking Total 6 | . 3 3 . 6 Tactical Retreats 1 | . . . . 1 Traps | -11 -10 -9 -9 -8 ------- Run | Yrd Mat Mat Min Mat Traps Triggered 2 | . 1 . . 1 Indirectly . | . . . . . Trap Hack Attempts . | . . . . . Triggered . | . . . . . Disarmed . | . . . . . Reprogrammed . | . . . . . Reused . | . . . . . Traps Extracted . | . . . . . Installed . | . . . . . Triggered . | . . . . . Machines | -11 -10 -9 -9 -8 ---------- Run | Yrd Mat Mat Min Mat Machines Disabled 2 | . 1 . . 1 Max in Single Turn 1 | . 1 . . 1 Machines Repaired . | . . . . . Machines Dismantled . | . . . . . Machines Sabotaged . | . . . . . Overloaded Fab Kills . | . . . . . Hacking | -11 -10 -9 -9 -8 --------- Run | Yrd Mat Mat Min Mat Machines Accessed 3 | . 1 . . 2 Terminals 2 | . 1 . . 1 Fabricators . | . . . . . Repair Stations 1 | . . . . 1 Recycling Units . | . . . . . Scanalyzers . | . . . . . Garrison Access . | . . . . . Total Hacks 8 | . 2 . . 6 Successful 7 | . 1 . . 6 Failed 1 | . 1 . . . Catastrophic . | . . . . . Database Lockouts . | . . . . . Manual . | . . . . . Terminals 5 | . 2 . . 3 Fabricators . | . . . . . Repair Stations 3 | . . . . 3 Recycling Units . | . . . . . Scanalyzers . | . . . . . Garrison Access . | . . . . . Terminal Hacks 4 | . 1 . . 3 Record 2 | . 1 . . 1 Scanalyzer Index 1 | . . . . 1 Hauler Manifests 1 | . . . . 1 Fabricator Hacks . | . . . . . Repair Station Hacks 3 | . . . . 3 Scan Component 2 | . . . . 2 Repair 1 | . . . . 1 Recycling Unit Hacks . | . . . . . Scanalyzer . | . . . . . Garrison Access Hacks . | . . . . . Unauthorized Hacks . | . . . . . Terminals . | . . . . . Fabricators . | . . . . . Repair Stations . | . . . . . Recycling Units . | . . . . . Scanalyzers . | . . . . . Garrison Access . | . . . . . Data Cores Recovered . | . . . . . Used . | . . . . . Hacking Detections 2 | . 1 . . 1 Full Trace Events 1 | . . . . 1 Feedback Events . | . . . . . Feedback Blocked . | . . . . . Robot Schematics Acquired . | . . . . . Robots Built . | . . . . . Authchips . | . . . . . Time . | . . . . . Total Robot Build Rating . | . . . . . Part Schematics Acquired . | . . . . . Parts Built . | . . . . . Authchips . | . . . . . Time . | . . . . . Total Part Build Rating . | . . . . . Parts Repaired 1 | . . . . 1 Time 26 | . . . . 26 Parts Recycled . | . . . . . Recycled Matter . | . . . . . Retrieved Matter . | . . . . . Retrieved Components . | . . . . . Parts Scanalyzed . | . . . . . Part Schematics Acquired . | . . . . . Parts Damaged . | . . . . . Bothacking | -11 -10 -9 -9 -8 ------------ Run | Yrd Mat Mat Min Mat Used RIF Installer . | . . . . . Robots Hacked . | . . . . . Non-combat . | . . . . . Combat . | . . . . . Robot Hacks Applied . | . . . . . Relay Couplers Released . | . . . . . Fabnet Peak Effective % . | . . . . . Robots Rewired . | . . . . . Allies Hacked . | . . . . . Hacks Repelled . | . . . . . Allies | -11 -10 -9 -9 -8 -------- Run | Yrd Mat Mat Min Mat Total Allies . | . . . . . Largest Group . | . . . . . Highest-Rated Group . | . . . . . Highest-Rated Ally . | . . . . . Total Orders . | . . . . . Ally Attacks . | . . . . . Total Damage . | . . . . . Kills . | . . . . . Allies Corrupted . | . . . . . Allies Melted . | . . . . . Intel | -11 -10 -9 -9 -8 ------- Run | Yrd Mat Mat Min Mat Robot Analysis Total . | . . . . . Derelict Logs Recovered . | . . . . . Drone Launches . | . . . . . Drone Recoveries . | . . . . . Exploration | -11 -10 -9 -9 -8 ------------- Run | Yrd Mat Mat Min Mat Turns Passed 1848 | 72 362 428 149 837 Spaces Moved 943 | 36 143 299 125 340 Core 50 | 36 12 . . 2 Treads 177 | . 131 46 . . Legs 716 | . . 253 125 338 Wheels . | . . . . . Hover . | . . . . . Flight . | . . . . . Fastest Speed 50 | 50 160 120 120 120 Average Speed 148 | 165 167 126 120 168 Slowest Speed 450 | 250 250 160 120 450 Overloaded Moves . | . . . . . Propulsion Burnouts . | . . . . . Robots Hopped . | . . . . . Cave-ins Triggered 1 | . . . . 1 Exploration Rate (%) 25 | 3 31 27 34 32 Regions Visited 4 Branch Regions 1 Pre-discovered Areas . | . . . . . Known Exits Taken 3 | . 1 1 1 . Unknown Exits Taken 1 | 1 . . . . Scrap Searched . | . . . . . Spaces Dug . | . . . . . Terrain Destroyed 87 | . . 10 . 77 Melee . | . . . . . Projectile . | . . . . . AOE 87 | . . 10 . 77 Terrain Rammed . | . . . . . Walls Destroyed . | . . . . . Machines Disabled . | . . . . . Actions | -11 -10 -9 -9 -8 --------- Run | Yrd Mat Mat Min Mat Total 1217 | 48 204 340 124 501 Wait 103 | . 13 16 . 74 Move 939 | 35 142 298 124 340 Hop . | . . . . . Pick Up 35 | 5 6 9 . 15 Fast Attach 9 | 4 . 1 . 4 Attach 22 | 2 4 4 . 12 Detach . | . . . . . Swap 4 | 1 . 1 . 2 Drop 11 | 1 . 5 . 5 Fire 94 | . 39 6 . 49 Melee . | . . . . . Ram . | . . . . . Kick . | . . . . . Crush . | . . . . . Escape Stasis . | . . . . . Rewire . | . . . . . Trap . | . . . . . Miscellaneous . | . . . . . Route ------- -11/Scrapyard -10/Materials (discovered 2 exits: *Mat / *Min) -9/Materials -9/Mines -8/Materials History --------- Turn | Location | Event 8 | -11/Scrapyard | Discovered new exit (range 16) 73 | -11/Scrapyard | Entered Materials 98 | -10/Materials | Discovered new exit (range 16) 270 | -10/Materials | Identified exit to Mines 321 | -10/Materials | Build established: Mutant 361 | -10/Materials | Discovered new exit (range 14) 434 | -10/Materials | Identified exit to Materials 435 | -10/Materials | Entered another Materials area 435 | -9/Materials | Evolved 2 slots: Utility x1, Weapon x1 845 | -9/Materials | Discovered new exit (range 16) 862 | -9/Materials | Identified exit to Mines 863 | -9/Materials | Entered Mines 955 | -9/Mines | Build established: Skirmisher 1003 | -9/Mines | Discovered new exit (range 8) 1011 | -9/Mines | Identified exit to Materials 1012 | -9/Mines | Entered Materials 1012 | -8/Materials | Evolved 2 slots: Power x1, Weapon x1 1336 | -8/Materials | Lost 6 parts (2p1u3w) 1751 | -8/Materials | Repaired Sml. Storage Unit 1780 | -8/Materials | Build established: Scavenger-Tank 1798 | -8/Materials | Crushed by falling debris 1810 | -8/Materials | Core integrity fell below 50% 1842 | -8/Materials | Core integrity fell below 20% 1849 | -8/Materials | Destroyed by G-47 Trooper with Particle Gun Last Messages --------------- 01819_ U-05 Engineer lays Concrete. 01820_ Critical hit (Burn: +37). 01820_ U-05 Engineer builds a Wall. 01820_ U-05 Engineer lays Concrete. 01821_ Imp. Assault Rifle destroyed. 01822_ U-05 Engineer builds a Wall. 01825_ U-05 Engineer destroyed. 01826_ U-05 Engineer builds a Wall. 01828_ System corrupted: Assault Rifle jammed. 01829_ Reflective Plating destroyed. 01831_ Assault Rifle destroyed. 01836_ Carbon-fiber Leg destroyed. 01837_ R-06 Scavenger collects Terrain Scanner. 01840_ R-06 Scavenger collects Terrain Scan Processor. 01840_ U-05 Engineer lays Concrete. 01842_ JR7JEPJ&U UT,L%&JF CLX>FF7 01842_ U-05 Engineer lays Concrete. 01844_ R-06 Scavenger collects Lgt. Ion Engine. 01845_ U-05 Engineer lays Concrete. 01848_ Critical hit (Burn: +37). Map ----- +----------------------------------------------------+ | #????# ??????????? # """ # | | #????# ??????????? + """ # | | #????# ??????????? # """ # | | #????# #???????????????########### # # | | #????# #?????????????????????????# # """ # | | #????# #?????????????????????????# #[ """ # | | #????# ??????????????????????????# # """ # | | ????? ???????????????????????#### # # | | ????? ???????????????????????# ######## | | ????? ???????????????????????# ##+######?? | | ?????? ???????????????????????# ## ]#?? | | ????????????????????????????????# ## #?? | | ??????????????????????????#+#???# ## #?? | | ?????????????????########## ##### ## #?? | | ?????????????????# + ## =! #?? | | ?????????????????# ############# [ !! #?? | | ?????????????????# #???????????########?? | | ?????????????????# #????????????????????? | | ?????????????????# #????????????????????? | | ?????????????????# ###########??????????? | | ?????????????????# ## #??????????? | | ?????????????????# ## """ #??????????? | | ????????????# ??# ## "R" #??????????? | | ???????????## ## ## " " #??????????? | | ???????????# ## ### #??????????? | | ?????????? # #@ """ #??????????? | | ????????? = [%! gg u""" #??????????? | | ?????????# g# % "" #??????????? | | ?????????# ##g#! g #??????????? | | ??????????? ########%##########??????????? | | ?????????????????????##!## !##??????????????? | | ??????????????????????# ##% !#??????????????? | | ???????????????????? ] !#??????????????? | | ???????????????????# !#??????????????? | | ???????????????????# T !#??????????????? | | ???????????????????# !##??????????????? | | ???????????????????# ####???????????????? | | ???????????????????## #???????????????????? | | ????????????????????# ????????????????????? | | ????????????????????# ????????????????????? | | ????????????????????# ????????????????????? | | ????????????????????# ????????????????????? | | ????????????????????# ?????????????????????? | | ????????????????????# ??????????????????????? | | ????????????????????????????????????????????? | | ????????????????????????????????????????????? | | ????????????????????????????????????????????? | | ????????????????????????????????????????????? | | ????????????????????????????????????????????? | | ????????????????????????????????????????????? | +----------------------------------------------------+ Best States ------------- Heat Dissipation 31 Energy Generation 23 Energy Capacity 250 Matter Stores 300 Matter Capacity 300 Sight Range 16 Robot Scan Range 15 Terrain Scan Density 10 Armor Coverage 150 Resistance: TH 10 Evasion (%) 55 Recoil Reduction 2 Item Schematics ----------------- None Robot Schematics ------------------ None Fabricated ------------ Nothing Alien Tech Used ----------------- None Achievements -------------- None Challenges ------------ None Game ------ Seed HardenedDeepCloak Manual? 0 Play Time 00:28:14 Cumulative 38.6 hours Start 2024.06.13 @ 19:41:32 End 2024.06.13 @ 20:22:37 Sessions 1 Manual Loads 0 Difficulty Rogue Special Mode None Game No. 68 Rogue 56 Adventurer 12 Explorer 0 Win Type - Total 0 Types 0/0/0/0/0/0/0/0/0 Lore% 13 Gallery% 24 Achievement% 19 Wizard Run 0 Options --------- Layout 0 ASCII 0 Keyboard 0 Movement Mouse Keybinds 0 Fullscreen 2 Font 18/SmallcapsGlow Map View 38x25 Zoom Use 98% Tactical HUD 1 Map Filters NONE Filters NONE Steam 1 RUN: 007eb783-6a1a-477b-98a4-c6ed80ce470b